bitfinex/quotes_SOLUSD_20220307
["timestamp","ask_amount","ask_price","bid_price","bid_amount"]
[1646677907111,6.25,82.816,82.771,0.25]
[1646677907310,6.039,82.815,82.771,0.25]
[1646677907512,6.25,82.814,82.771,0.25]
[1646677907711,6.039,82.813,82.771,0.25]
[1646677907912,6.25,82.812,82.771,0.25]
[1646677908113,0.40569526,82.811,82.78,18.1213]
[1646677908312,23.9913,82.818,82.781,37.5139093]
[1646677908515,23.9913,82.818,82.781,37.2639093]
[1646677908711,23.9913,82.818,82.782,0.25]
[1646677909712,23.9913,82.818,82.764,120.3]
[1646677909912,23.9913,82.818,82.765,126.55]
[1646677910114,23.9913,82.818,82.79,18.1132]
[1646677910316,23.9913,82.818,82.791,0.25]
[1646677910514,23.9913,82.818,82.765,6.0]
[1646677910714,23.9913,82.818,82.766,6.0]
[1646677910915,23.9913,82.818,82.75,14.43]
[1646677911117,23.9913,82.818,82.752,6.0]
[1646677911515,0.25,82.817,82.753,41.56990309]
[1646677911716,0.25,82.817,82.77,18.1223]
[1646677912217,0.25,82.817,82.771,0.25]
[1646677912916,6.039,82.816,82.771,0.25]
[1646677913117,0.25,82.817,82.771,0.25]
[1646677913323,120.3,82.816,82.754,6.0]
[1646677913518,6.25,82.815,82.751,6.0]
[1646677913722,6.0,82.814,82.751,6.0]
[1646677913917,6.25,82.817,82.751,6.0]
[1646677914319,6.039,82.816,82.77,18.1223]
[1646677914517,6.25,82.815,82.77,18.1223]
[1646677914717,6.039,82.814,82.77,18.1223]
[1646677914918,6.25,82.813,82.77,18.1223]
[1646677915519,6.0,82.816,82.77,60.10652373]
[1646677915722,6.289,82.815,82.77,60.10652373]
[1646677916019,0.25,82.815,82.77,60.10652373]
[1646677916221,0.25,82.815,82.77,18.1223]
[1646677916620,0.25,82.815,82.771,0.25]
[1646677916920,0.25,82.817,82.78,18.1213]
[1646677917119,0.25,82.817,82.781,0.25]
[1646677917321,0.25,82.817,82.776,45.70010311]
[1646677917521,0.25,82.817,82.777,0.25]
[1646677917922,0.25,82.817,82.79,18.1194]
[1646677918726,0.25,82.817,82.777,0.25]
[1646677918923,0.25,82.817,82.771,0.25]
[1646677919323,0.25,82.817,82.78,18.121]
[1646677919524,0.25,82.817,82.781,0.25]
[1646677919826,6.038,82.837,82.781,0.25]
[1646677920030,23.2685,82.848,82.781,0.25]
[1646677920227,23.2685,82.848,82.791,6.0]
[1646677920431,23.2685,82.848,82.8,18.1073]
[1646677920632,23.2685,82.848,82.801,0.25]
[1646677920828,44.64482544,82.847,82.801,26.67390667]
[1646677921027,44.64482544,82.847,82.801,0.25]
[1646677921727,0.25,82.846,82.783,0.25]
[1646677921928,0.25,82.846,82.783,44.59234768]
[1646677922228,0.25,82.846,82.81,18.1149]
[1646677922529,0.25,82.846,82.811,0.25]
[1646677923128,0.25,82.846,82.82,18.1126]
[1646677924430,44.64482544,82.847,82.821,0.25]
[1646677924630,44.64482544,82.847,82.83,18.1091]
[1646677924829,23.2685,82.848,82.83,18.1091]
[1646677925830,45.19093633,82.847,82.83,18.1091]
[1646677926228,45.19093633,82.847,82.82,18.1128]
[1646677926432,45.19093633,82.847,82.821,0.25]
[1646677927531,24.0008,82.867,82.83,18.1104]
[1646677927732,24.3511,82.866,82.831,0.25]
[1646677928732,24.3511,82.866,82.84,18.1041]
[1646677928933,24.3511,82.866,82.841,0.25]
[1646677929532,35.74549686,82.865,82.841,0.25]
[1646677929733,35.74549686,82.865,82.85,18.1064]
[1646677930035,35.74549686,82.865,82.758,120.3]
[1646677930234,0.98169069,82.864,82.79,14.43]
[1646677930434,6.035,82.863,82.79,14.43]
[1646677930634,0.98169069,82.862,82.79,14.43]
[1646677930936,0.73169069,82.86,82.791,45.23294011]
[1646677931135,6.035,82.859,82.8,18.1171]
[1646677931437,0.25,82.858,82.801,0.25]
[1646677931636,6.035,82.857,82.792,0.25]
[1646677931833,6.25,82.856,82.792,0.25]
[1646677932034,6.45902769,82.855,82.791,0.25]
[1646677932237,126.55,82.854,82.781,0.25]
[1646677932433,0.63883464,82.851,82.781,0.25]
[1646677932634,126.337,82.85,82.771,6.0]
[1646677932839,172.74034691,82.849,82.771,6.0]
[1646677933134,172.74034691,82.849,82.77,18.4873]
[1646677933135,120.3,82.839,82.77,18.4873]
[1646677933335,59.4949,82.838,82.77,18.4873]
[1646677933537,0.42218517,82.837,82.77,18.4873]
[1646677933834,46.12426865,82.835,82.77,18.4873]
[1646677934036,12.288,82.834,82.77,18.4873]
[1646677934233,12.288,82.834,82.771,0.25]
[1646677935838,12.288,82.834,82.77,18.4873]
[1646677936336,12.288,82.834,82.78,18.1215]
[1646677937036,120.3,82.833,82.77,18.4873]
[1646677937237,0.57942071,82.83,82.768,17.9761]
[1646677937437,0.57942071,82.828,82.768,17.9761]
[1646677937637,0.57942071,82.828,82.743,6.038]
[1646677937638,0.57942071,82.826,82.743,6.038]
[1646677937844,6.039,82.825,82.745,47.50089868]
[1646677938049,6.25,82.824,82.746,12.289]
[1646677938245,6.039,82.823,82.746,12.289]
[1646677938448,120.3,82.821,82.75,60.4102]
[1646677938650,0.44291303,82.818,82.751,6.25]
[1646677938850,6.039,82.817,82.752,12.289]
[1646677939050,6.25,82.816,82.752,6.039]
[1646677939274,41.76572434,82.814,82.728,24.86390667]
[1646677939571,121.01581321,82.809,82.708,24.86390667]
[1646677939772,120.3,82.807,82.709,6.0]
[1646677939969,0.71581321,82.804,82.71,14.43]
[1646677940169,120.3,82.803,82.711,6.0]
[1646677940368,192.44,82.799,82.711,6.0]
[1646677940569,120.3,82.797,82.72,18.1346]
[1646677940768,120.3,82.795,82.721,0.25]
[1646677940968,120.3,82.793,82.72,18.1346]
[1646677941270,120.3,82.791,82.72,18.1346]
[1646677941470,120.3,82.789,82.72,18.1346]
[1646677941772,6.25,82.788,82.72,18.1346]
[1646677942170,23.7029,82.787,82.72,18.1346]
[1646677942369,6.25,82.786,82.72,18.1346]
[1646677942570,6.042,82.785,82.72,18.1346]
[1646677942772,45.61926783,82.784,82.73,18.1267]
[1646677942971,45.36926783,82.784,82.73,18.1267]
[1646677943174,45.36926783,82.784,82.73,42.99060667]
[1646677943470,6.041,82.813,82.731,6.0]
[1646677943674,6.04,82.807,82.731,126.3]
[1646677943870,47.6279,82.836,82.741,120.3]
[1646677944071,6.0,82.835,82.75,14.43]
[1646677944274,6.0,82.835,82.751,6.25]
[1646677944470,35.47146353,82.834,82.753,120.3]
[1646677944770,35.47146353,82.834,82.755,120.3]
[1646677944971,35.47146353,82.834,82.757,120.3]
[1646677945171,35.47146353,82.834,82.77,14.43]
[1646677945369,35.47146353,82.834,82.772,46.23127905]
[1646677945570,35.47146353,82.834,82.773,6.25]
[1646677946171,35.47146353,82.834,82.774,120.3]
[1646677946371,35.47146353,82.834,82.78,18.114]
[1646677946671,6.039,82.854,82.781,6.25]
[1646677947271,6.039,82.854,82.782,120.3]
[1646677947471,7.32,82.855,82.784,120.3]
[1646677947674,7.32,82.855,82.791,120.3]
[1646677947974,47.6279,82.871,82.8,14.43]
[1646677948171,47.6279,82.871,82.802,120.3]
[1646677948370,47.6279,82.871,82.804,120.3]
[1646677948570,120.3,82.911,82.806,120.3]
[1646677948777,59.9139,82.91,82.811,120.3]
[1646677948973,53.9139,82.91,82.813,120.3]
[1646677949173,53.9139,82.91,82.815,120.3]
[1646677949174,47.8799,82.91,82.815,120.3]
[1646677949375,6.0,82.909,82.816,6.25]
[1646677949571,6.034,82.908,82.83,14.43]
[1646677949772,38.20880135,82.906,82.832,45.74518465]
[1646677949972,12.033,82.905,82.84,18.103]
[1646677950174,0.45541766,82.903,82.841,0.25]
[1646677950472,6.033,82.902,82.841,0.25]
[1646677950673,6.25,82.901,82.841,0.25]
[1646677951273,6.0,82.9,82.832,6.25]
[1646677951474,0.25,82.899,82.85,18.1059]
[1646677951673,0.25,82.901,82.851,0.25]
[1646677952275,6.033,82.9,82.851,0.25]
[1646677952476,6.25,82.899,82.851,0.25]
[1646677952677,6.033,82.898,82.86,18.1034]
[1646677952877,6.0,82.897,82.861,0.25]
[1646677953077,6.0,82.899,82.861,0.25]
[1646677953577,6.0,82.905,82.861,0.25]
[1646677954077,38.20880135,82.906,82.87,18.0984]
[1646677954277,38.20880135,82.906,82.871,48.45936906]
[1646677954482,38.20880135,82.906,82.871,57.20936906]
[1646677954881,38.20880135,82.906,82.871,9.0]
[1646677955079,38.20880135,82.906,82.871,0.25]
[1646677955378,38.20880135,82.906,82.861,0.25]
[1646677955779,0.73020798,82.905,82.841,0.25]
[1646677955979,6.51320798,82.905,82.841,42.46167691]
[1646677956179,6.033,82.905,82.841,42.46167691]
[1646677956480,6.033,82.905,82.85,18.1034]
[1646677956680,6.033,82.905,82.851,0.25]
[1646677956982,38.20880135,82.906,82.851,0.25]
[1646677957380,47.8799,82.91,82.851,6.25]
[1646677957580,47.8799,82.91,82.86,18.0983]
[1646677957783,6.032,82.953,82.87,60.3153]
[1646677957981,6.0,82.924,82.871,6.25]
[1646677958281,53.6329,82.953,82.871,6.25]
[1646677958483,53.6329,82.953,82.872,163.61196123]
[1646677958683,47.6009,82.953,82.88,18.0946]
[1646677958884,47.6009,82.953,82.881,6.25]
[1646677959081,47.6009,82.953,82.89,60.2922]
[1646677959283,47.6009,82.953,82.891,6.25]
[1646677959485,36.27712408,82.952,82.892,41.03696056]
[1646677959682,36.27712408,82.952,82.9,18.0877]
[1646677959882,36.27712408,82.952,82.901,0.25]
[1646677960089,23.3403,82.981,82.901,0.25]
[1646677960287,47.234,82.98,82.901,0.25]
[1646677960485,47.234,82.98,82.901,6.25]
[1646677960887,6.028,82.979,82.91,18.0903]
[1646677961187,35.73293587,82.978,82.911,44.26333145]
[1646677961686,12.027,82.977,82.911,38.26333145]
[1646677962288,0.25,82.976,82.911,38.26333145]
[1646677962490,6.027,82.975,82.911,38.26333145]
[1646677962689,6.25,82.974,82.92,18.0885]
[1646677962890,6.027,82.973,82.921,0.25]
[1646677963089,6.25,82.972,82.921,0.25]
[1646677963390,6.027,82.971,82.921,0.25]
[1646677963590,6.0,82.97,82.921,0.25]
[1646677963890,6.027,82.969,82.93,18.0862]
[1646677964089,6.0,82.968,82.931,0.25]
[1646677964291,6.0,82.97,82.931,0.25]
[1646677964692,6.0,82.977,82.931,0.25]
[1646677965090,6.0,82.977,82.94,18.0844]
[1646677965290,6.0,82.977,82.941,0.25]
[1646677965490,53.261,82.98,82.941,0.25]
[1646677965690,47.234,82.98,82.941,0.25]
[1646677966292,47.234,82.98,82.938,0.25]
[1646677966493,47.234,82.98,82.95,18.0822]
[1646677966694,47.234,82.98,82.951,36.70514617]
[1646677967792,47.234,82.98,82.951,0.25]
[1646677967994,47.234,82.98,82.941,0.25]
[1646677968193,47.234,82.98,82.921,6.25]
[1646677968494,0.48161159,82.978,82.92,14.43]
[1646677968894,0.48161159,82.978,82.891,30.12632919]
[1646677968895,6.027,82.977,82.921,47.02263074]
[1646677969095,6.48161159,82.976,82.921,47.02263074]
[1646677969295,34.09880036,82.978,82.921,47.02263074]
[1646677969496,34.09880036,82.978,82.921,65.41503074]
[1646677969695,34.09880036,82.978,82.922,0.25]
[1646677969898,47.234,82.98,82.922,0.25]
[1646677970096,47.234,82.98,82.93,18.087]
[1646677970295,47.234,82.98,82.931,6.25]
[1646677970895,47.234,82.98,82.931,0.25]
[1646677971096,47.234,82.98,82.931,6.25]
[1646677971297,47.234,82.98,82.932,120.3]
[1646677971497,6.027,83.026,82.94,18.0809]
[1646677971698,52.4078,83.025,82.941,6.25]
[1646677971895,6.025,83.024,82.941,6.25]
[1646677972096,51.17070857,83.023,82.942,40.79551875]
[1646677972299,6.025,83.022,82.943,6.25]
[1646677972499,0.54459653,83.02,82.943,0.25]
[1646677972696,0.54459653,83.018,82.943,0.25]
[1646677972898,6.025,83.017,82.961,40.27944365]
[1646677973097,6.25,83.016,82.962,0.25]
[1646677973297,6.024,83.015,82.962,0.25]
[1646677973499,6.25,83.014,82.962,0.25]
[1646677973698,29.8114,83.014,82.962,0.25]
[1646677973902,29.8114,83.014,82.97,18.078]
[1646677974101,29.8114,83.014,82.961,41.54227327]
[1646677974503,6.025,83.013,82.961,41.54227327]
[1646677974702,0.54370845,83.011,82.961,41.54227327]
[1646677974902,0.54370845,83.011,82.94,14.43]
[1646677975103,0.54370845,83.011,82.941,6.0]
[1646677975302,6.0,83.011,82.941,6.0]
[1646677975503,0.25,83.01,82.96,18.0789]
[1646677975702,0.25,83.012,82.961,0.25]
[1646677976504,23.5614,83.014,82.97,18.0769]
[1646677976705,23.5614,83.014,82.971,6.25]
[1646677977506,23.5614,83.014,82.98,18.0716]
[1646677977809,6.0,83.013,82.981,0.25]
[1646677978007,112.2,83.039,82.99,14.43]
[1646677978207,1.59157126,83.063,82.991,6.25]
[1646677978407,1.59157126,83.063,82.992,120.3]
[1646677978606,46.8222,83.067,82.994,120.3]
[1646677978806,46.8222,83.067,83.001,120.3]
[1646677979006,41.14716985,83.066,83.01,14.43]
[1646677979207,41.14716985,83.066,83.011,6.25]
[1646677979809,6.0,83.065,83.011,6.25]
[1646677980212,6.0,83.065,83.02,18.0628]
[1646677980416,6.0,83.065,83.021,6.25]
[1646677981135,6.0,83.065,83.021,0.25]
[1646677981535,6.0,83.065,83.01,14.43]
[1646677981735,6.0,83.065,83.007,0.25]
[1646677981736,0.42970978,83.063,83.011,0.25]
[1646677981934,6.021,83.062,83.011,0.25]
[1646677982132,0.25,83.064,83.011,0.25]
[1646677982133,6.25,83.061,83.011,0.25]
[1646677982335,6.021,83.06,83.011,0.25]
[1646677982533,0.25,83.059,83.02,18.0683]
[1646677982734,41.14716985,83.066,83.021,0.25]
[1646677983037,6.0,83.065,83.021,0.25]
[1646677983234,0.25,83.064,83.021,0.25]
[1646677983834,6.0,83.065,83.011,0.25]
[1646677984033,6.0,83.065,83.011,52.93574762]
[1646677984234,6.0,83.065,83.03,18.0636]
[1646677984434,0.25,83.064,83.011,0.25]
[1646677984835,0.25,83.064,83.001,6.0]
[1646677985035,0.65272786,83.064,83.0,14.43]
[1646677985236,0.25,83.064,83.0,14.43]
[1646677985644,0.4559223,83.063,83.0,14.43]
[1646677986036,1.59157126,83.056,83.02,18.0677]
[1646677986236,4.91117163,83.017,83.0,74.6555]
[1646677986438,4.91117163,83.017,83.001,0.25]
[1646677986639,4.91117163,83.017,82.99,14.43]
[1646677986837,0.82118321,83.015,82.96,14.43]
[1646677987041,0.25,83.016,82.954,18.0641]
[1646677987238,0.25,83.016,82.95,14.43]
[1646677987637,6.025,83.015,82.95,14.43]
[1646677988039,6.025,83.015,82.951,6.25]
[1646677988241,6.025,83.015,82.96,18.0787]
[1646677988442,13.13594344,83.016,82.961,0.25]
[1646677988739,6.024,83.015,82.961,0.25]
[1646677988940,6.25,83.014,82.94,14.43]
[1646677989144,6.53005585,83.013,82.92,14.43]
[1646677989339,0.58328882,83.009,82.92,14.43]
[1646677989541,6.026,83.008,82.92,14.43]
[1646677989740,6.85086494,83.007,82.92,14.43]
[1646677989938,6.026,83.006,82.921,35.20492848]
[1646677990139,6.25,83.005,82.922,0.25]
[1646677990343,6.026,83.004,82.922,6.25]
[1646677990539,10.89566018,83.003,82.922,6.25]
[1646677990742,6.026,83.002,82.922,6.25]
[1646677990940,6.25,83.001,82.922,6.25]
[1646677991141,6.026,83.0,82.94,18.0856]
[1646677991340,6.25,82.999,82.941,0.25]
[1646677991541,126.326,82.998,82.91,37.47320568]
[1646677991744,6.86008185,82.997,82.867,4.80430943]
[1646677991940,1.59157126,82.99,82.89,14.43]
[1646677992140,6.86008185,82.989,82.891,6.0]
[1646677992340,18.91294344,82.988,82.91,18.0925]
[1646677992542,30.5712,82.987,82.911,43.36311951]
[1646677993140,28.9483,82.986,82.911,43.36311951]
[1646677993343,6.25,82.985,82.931,42.34941371]
[1646677993540,6.027,82.984,82.932,0.25]
[1646677993744,6.0,82.983,82.932,0.25]
[1646677993941,22.9213,82.986,82.932,0.25]
[1646677994441,22.9213,82.986,82.94,18.0848]
[1646677994640,22.9213,82.986,82.941,0.25]
[1646677995044,6.0,82.985,82.941,0.25]
[1646677995643,6.0,82.996,82.941,0.25]
[1646677995844,6.0,82.996,82.932,126.3]
[1646677995845,6.0,82.996,82.933,0.25]
[1646677996342,6.0,82.996,82.95,18.077]
[1646677996546,6.026,83.013,82.961,120.3]
[1646677996745,6.026,83.013,82.951,6.25]
[1646677996746,6.025,83.03,82.97,14.43]
[1646677996945,48.8817,83.031,82.971,6.25]
[1646677997146,48.8817,83.031,82.98,18.07]
[1646677997346,6.024,83.03,82.981,6.25]
[1646677997748,6.024,83.03,82.981,0.25]
[1646677997948,6.0,83.016,82.981,0.25]
[1646677998351,6.0,83.016,82.974,0.25]
[1646677998551,6.0,83.016,82.99,18.0735]
[1646677998750,6.0,83.016,82.991,0.25]
[1646678000154,6.0,83.016,83.0,18.0733]
[1646678000857,6.0,83.016,83.001,0.25]
[1646678003559,0.41179047,83.015,82.99,18.0753]
[1646678003757,0.41179047,83.015,82.991,0.25]
[1646678004359,6.0,83.016,82.991,0.25]
[1646678004759,0.25,83.015,82.98,18.0761]
[1646678005758,6.0,83.016,82.98,18.0761]
[1646678006164,6.0,83.016,82.981,0.25]
[1646678006359,6.0,83.016,82.99,18.0754]
[1646678011266,6.0,83.016,82.991,6.0]
[1646678011464,6.0,83.016,82.99,18.0754]
[1646678011862,4.91117163,83.017,82.99,18.0754]
[1646678012262,6.0,83.016,82.99,18.0754]
[1646678012665,6.0,83.016,82.981,0.25]
[1646678013068,0.40542684,83.015,82.981,0.25]
[1646678013265,6.0,83.016,82.981,0.25]
[1646678013666,0.25,83.015,82.98,18.0776]
[1646678013868,0.25,83.015,82.97,18.0796]
[1646678013869,0.61687917,83.014,82.97,18.0796]
[1646678014065,0.61687917,83.014,82.94,14.43]
[1646678014289,120.3,83.012,82.94,14.43]
[1646678014566,0.89041698,83.009,82.92,14.43]
[1646678014767,6.026,83.008,82.931,35.27549816]
[1646678014966,0.89041698,83.006,82.931,35.27549816]
[1646678015166,6.026,83.005,82.95,18.084]
[1646678015369,6.25,83.004,82.951,42.43729753]
[1646678015568,6.25,83.004,82.952,0.25]
[1646678015871,6.0,83.004,82.952,0.25]
[1646678016068,6.0,83.012,82.953,31.99753902]
[1646678016269,6.0,83.012,82.96,18.0808]
[1646678016571,6.0,83.012,82.954,0.25]
[1646678016572,0.25,83.011,82.961,6.275]
[1646678016768,0.25,83.011,82.954,26.22253902]
[1646678016769,0.25,83.011,82.962,0.25]
[1646678018081,0.25,83.011,82.953,0.25]
[1646678018270,0.25,83.011,82.97,18.0779]
[1646678018471,0.25,83.011,82.971,0.25]
[1646678019075,0.25,83.011,82.96,60.2582]
[1646678019273,0.25,83.011,82.98,18.0779]
[1646678019971,6.274,83.011,82.981,45.75804759]
[1646678020173,24.716,83.031,82.981,45.75804759]
[1646678020174,30.74,83.031,82.99,18.0726]
[1646678020376,24.716,83.031,82.991,0.25]
[1646678020875,24.716,83.031,82.991,6.25]
[1646678021273,24.716,83.031,83.0,18.0667]
[1646678021476,24.716,83.031,83.001,0.25]
[1646678022275,24.716,83.031,83.001,44.41751743]
[1646678022676,23.067,83.048,83.001,44.41751743]
[1646678022879,23.067,83.048,83.01,18.0647]
[1646678023077,31.01197126,83.067,83.011,6.25]
[1646678023280,54.3794,83.067,83.012,6.0]
[1646678023479,54.3794,83.067,83.013,0.25]
[1646678023677,48.3584,83.067,83.013,0.25]
[1646678023877,48.3584,83.067,83.021,35.03781115]
[1646678024076,48.3584,83.067,83.022,0.25]
[1646678024280,6.0,83.066,83.022,0.25]
[1646678024877,6.0,83.066,83.03,18.0649]
[1646678025078,6.0,83.066,83.031,0.25]
[1646678025280,6.0,83.066,83.022,0.25]
[1646678025878,6.0,83.066,83.03,18.0671]
[1646678026178,6.0,83.066,83.031,0.25]
[1646678027176,6.0,83.066,83.021,0.25]
[1646678027980,19.61541967,83.065,83.021,0.25]
[1646678028180,6.0,83.064,83.04,18.0645]
[1646678028780,6.0,83.066,83.04,18.0645]
[1646678029304,21.88821607,83.065,83.03,18.0666]
[1646678029502,6.25,83.064,83.03,18.0666]
[1646678029704,0.60028394,83.063,83.03,18.0666]
[1646678030906,6.25,83.064,83.03,18.0666]
[1646678031105,6.0,83.064,83.03,18.0666]
[1646678031306,6.0,83.064,83.031,0.25]
[1646678031908,6.0,83.064,83.04,18.0646]
[1646678032607,0.45974868,83.062,83.002,47.86265376]
[1646678032908,0.25,83.063,83.0,114.43]
[1646678033109,0.25,83.063,83.0,100.0]
[1646678033110,0.64861642,83.062,83.0,100.0]
[1646678033707,0.25,83.063,83.0,100.0]
[1646678033907,0.43452896,83.062,83.0,100.0]
[1646678034108,3.27066422,83.062,83.0,100.0]
[1646678034307,0.70009359,83.059,83.0,100.0]
[1646678034510,120.3,83.058,83.0,100.0]
[1646678034708,0.70009359,83.055,83.0,100.0]
[1646678034909,120.3,83.054,83.0,100.0]
[1646678035108,1.25465277,83.048,83.0,100.0]
[1646678035307,0.70009359,83.045,83.0,100.0]
[1646678035508,120.3,83.044,83.0,100.0]
[1646678035710,120.3,83.042,83.0,100.0]
[1646678035912,120.3,83.04,83.0,100.0]
[1646678036108,6.65257503,83.039,83.0,100.0]
[1646678036708,6.25,83.039,83.0,100.0]
[1646678036908,0.40101814,83.038,83.0,100.0]
[1646678037112,0.25,83.039,83.0,100.0]
[1646678037410,0.25,83.046,83.0,100.0]
[1646678037610,120.3,83.045,83.0,100.0]
[1646678037815,120.3,83.043,83.0,100.0]
[1646678038010,120.3,83.041,83.0,100.0]
[1646678038211,126.55,83.04,83.0,100.0]
[1646678039012,6.25,83.04,83.0,118.0731]
[1646678039216,6.0,83.039,83.0,118.0731]
[1646678039416,0.25,83.038,83.0,118.0731]
[1646678039619,6.0,83.046,83.001,0.25]
[1646678039812,23.5299,83.047,83.001,0.25]
[1646678040213,23.5299,83.047,83.01,18.0691]
[1646678040414,23.5299,83.047,83.011,0.25]
[1646678040715,126.3,83.046,83.0,100.0]
[1646678040914,6.0,83.046,83.0,100.0]
[1646678041113,0.25,83.045,83.0,100.0]
[1646678044521,0.25,83.045,83.0,118.0727]
[1646678045120,6.022,83.045,83.0,118.0727]
[1646678045320,6.0,83.044,83.001,0.25]
[1646678045720,6.0,83.045,83.001,0.25]
[1646678046221,0.25,83.044,83.001,0.25]
[1646678046823,6.272,83.044,83.001,0.25]
[1646678047022,23.5299,83.047,83.01,18.0713]
[1646678047227,6.0,83.046,83.011,0.25]
[1646678048223,6.0,83.046,83.003,0.25]
[1646678048626,6.0,83.046,83.02,18.0681]
[1646678048825,23.5299,83.047,83.02,18.0681]
[1646678048826,23.5299,83.047,83.021,0.25]
[1646678049228,29.4214,83.067,83.021,0.25]
[1646678049427,23.3994,83.067,83.021,0.25]
[1646678049627,23.3994,83.067,83.03,18.0661]
[1646678049829,23.3994,83.067,83.031,0.25]
[1646678050625,23.3994,83.067,83.04,18.065]
[1646678050828,23.3994,83.067,83.041,0.25]
[1646678051325,23.3994,83.067,83.003,6.0]
[1646678051532,0.65396618,83.065,83.004,0.25]
[1646678051929,0.69462839,83.063,83.004,0.25]
[1646678052127,6.0,83.063,83.01,18.071]
[1646678052331,5.79333301,83.062,83.011,0.25]
[1646678052529,6.0,83.061,83.011,0.25]
[1646678053128,6.0,83.061,83.02,18.0671]
[1646678053329,6.0,83.061,83.021,0.25]
[1646678054130,5.79333301,83.062,83.021,0.25]
[1646678054330,5.79333301,83.062,83.03,18.0663]
[1646678054530,5.79333301,83.062,83.031,0.25]
[1646678054934,5.79333301,83.062,83.03,18.0663]
[1646678055133,6.25,83.061,83.03,18.0663]
[1646678055330,6.25,83.061,83.02,18.0691]
[1646678055550,0.41043435,83.06,82.99,120.29010568]
[1646678055832,0.58309725,83.058,82.99,87.92960568]
[1646678056034,0.58309725,83.056,82.99,87.92960568]
[1646678056232,0.58309725,83.054,83.001,0.25]
[1646678056433,6.022,83.053,83.001,0.25]
[1646678056633,6.25,83.052,83.01,18.0709]
[1646678056833,6.021,83.051,83.011,0.25]
[1646678057035,6.25,83.05,83.011,0.25]
[1646678057233,6.25,83.05,82.99,87.92960568]
[1646678057234,6.021,83.049,82.99,87.92960568]
[1646678057439,6.25,83.048,82.99,27.69720568]
[1646678057634,0.5034855,83.046,82.99,27.69720568]
[1646678057836,6.022,83.045,83.0,118.073]
[1646678058033,6.25,83.044,83.0,118.073]
[1646678058234,6.022,83.043,83.0,118.073]
[1646678058433,6.25,83.042,83.0,118.073]
[1646678058633,6.022,83.041,83.0,118.073]
[1646678058833,6.25,83.04,83.0,118.073]
[1646678059034,6.022,83.039,83.0,118.073]
[1646678059234,6.25,83.038,83.0,118.073]
[1646678059433,6.022,83.037,83.0,118.073]
[1646678059636,6.0,83.036,83.001,0.25]
[1646678059832,6.022,83.035,83.001,0.25]
[1646678060037,6.51836872,83.034,83.001,0.25]
[1646678060235,6.022,83.033,83.01,18.0714]